Cogmind - Beta 16.1 @@@ ROGUE MODE // 2026.03.14 @ 22:13:10 Player: backburnr Result: Destroyed by Autobeam Turret with Autobeam Performance ------------- Evolutions (0) 0 Regions Visited (2) 400 Robots Destroyed (11) 55 Value Destroyed (164) 164 Prototype IDs (0) 0 Alien Tech Used (0) 0 Bonus (0) 0 TOTAL SCORE: 619 Bonus ------- None Cogmind --------- Core Integrity 0/250 Matter 300/300 Energy 99/100 System Corruption 0% Temperature Cool (12) Movement Core (100) Ox1 Location -10/Subcaves Parts ------- > --- POWER (1) -------- (None) > --- PROPULSION (2) --- (None) > --- UTILITY (2) ------ Small Storage Unit Improved Terrain Scanner > --- WEAPON (2) ------- (None) > --- INVENTORY (8) ---- Wheel Wheel Small Storage Unit Small Laser Peak State ------------ > --- POWER ------------ Light Ion Engine > --- PROPULSION ------- Light Treads > --- UTILITY ---------- Small Storage Unit Improved Terrain Scanner > --- WEAPON ----------- Light Assault Rifle Light Assault Rifle > --- INVENTORY -------- Wheel Wheel Small Storage Unit Small Laser [Rating: 8] Favorites ----------- Power Ion Engine Engine Ion Engine Propulsion Light Treads Treads Light Treads Utility Small Storage Unit Device Seismic Detector Storage Small Storage Unit Weapon Light Assault Rifle Energy Gun Small Laser Ballistic Gun Light Assault Rifle Build | -11 -10 -10 ------- Run | Yrd Mat Sub Slots Evolved . | . . . Power . | . . . Propulsion . | . . . Utility . | . . . Weapon . | . . . Parts Attached 10 | 7 . 3 Power 2 | 1 . 1 Engine 2 | 1 . 1 Core . | . . . Reactor . | . . . Propulsion 2 | 2 . . Treads 2 | 2 . . Leg . | . . . Wheel . | . . . Hover . | . . . Flight . | . . . Utility 3 | 2 . 1 Device 2 | 1 . 1 Storage 1 | 1 . . Processor . | . . . Hackware . | . . . Protection . | . . . Artifact . | . . . Weapon 3 | 2 . 1 Energy Gun 1 | 1 . . Energy Cannon . | . . . Ballistic Gun 2 | 1 . 1 Ballistic Cannon . | . . . Launcher . | . . . Special Weapon . | . . . Impact Weapon . | . . . Slashing Weapon . | . . . Piercing Weapon . | . . . Special Melee Weapon . | . . . Unidentified Prototypes . | . . . Parts Lost 7 | . . 7 Power 2 | . . 2 Propulsion 2 | . . 2 Utility 1 | . . 1 Weapon 2 | . . 2 Highest Loss Streak 4 | . . 4 To Critical Strikes . | . . . Average Backups 4 | 2 5 5 Power . | . 1 . Propulsion 1 | . 2 2 Utility 1 | . 2 1 Weapon . | . . . Tool/Special . | . . . Unused Backups 3 | . . 3 Power . | . . . Propulsion 2 | . . 2 Utility 1 | . . 1 Weapon . | . . . Tool/Special . | . . . Average Slot Usage (%) 95 | . 100 92 Engine 13 | . 14 13 Treads 26 | . 28 24 Device 13 | . 14 13 Storage 14 | . 14 14 Energy Gun 9 | . 14 6 Ballistic Gun 16 | . 14 17 Peak Build Rating 8 | 7 7 8 Average Rating 6 | 5 7 6 On Entrance 4 | . 7 7 Avg Prop Armor Cover (%) . | . . . Naked Turns . | . . . Heaviest Build 13 | 13 13 13 Greatest Support 40 | 40 40 40 Greatest Overweight (x) 4 | . . 4 Average Overweight (x) . | . . . Largest Inventory Capacity 8 | 8 8 8 Average Capacity 7 | 7 8 8 Most Carried 6 | 5 5 6 Average Carried 4 | 2 5 5 Final Capacity 8 | 8 8 8 Final Carried 5 | 5 5 4 Class Distribution -------------------- 100% | Mutant Dominant Class ---------------- Mutant | -10/Materials Mutant | -10/Subcaves Resources | -11 -10 -10 ----------- Run | Yrd Mat Sub Matter Collected 348 | 273 . 75 Remotely . | . . . Salvage Created 324 | 116 . 208 Parts 23 | 8 . 15 Haulers Intercepted . | . . . Recyclers Shooed . | . . . Parts Field Recycled . | . . . Retrieved Matter . | . . . Parts Self-Destructed 14 | . . 14 Prevented . | . . . Parts Restored . | . . . Kills | -11 -10 -10 ------- Run | Yrd Mat Sub Combat Hostiles Destroyed 9 | . . 9 Guns 9 | . . 9 Classes Destroyed 4 | 2 . 2 Tunneler 1 | 1 . . Recycler 1 | 1 . . Swarmer 7 | . . 7 Grunt 2 | . . 2 Best Kill Streak 4 | 2 . 4 Combat Bots Only 4 | . . 4 Max Kills in Single Turn 2 | 1 . 2 Gunslinging 1 | . . 1 Exploded . | . . . Melee . | . . . Uniques/NPCs Destroyed . | . . . Combat | -11 -10 -10 -------- Run | Yrd Mat Sub Hostile Shots Fired 148 | . . 148 Missed 55 | . . 55 Hits 93 | . . 93 Projectile 93 | . . 93 Critical Strikes 1 | . . 1 Damage Taken 922 | . . 922 Core 254 | . . 254 Absorbed by Shields . | . . . Core Remaining (%) 100 | 100 . . Volleys Fired 34 | 3 . 31 Largest 2 | 2 . 2 Hottest 60 | 60 . 60 Shots Fired 64 | 6 . 58 Gun 64 | 6 . 58 Cannon . | . . . Launcher . | . . . Special . | . . . Kinetic 59 | 3 . 56 Thermal 5 | 3 . 2 Explosive . | . . . Electromagnetic . | . . . Robot Hit Streak 8 | 5 . 8 Robot Miss Streak 4 | . . 4 Penetration Max . | . . . Secondary Targets 2 | . . 2 Max Gunslinging Chain 1 | . . 1 Shots Hit Robots 37 | 5 . 32 Core Hits 18 | 4 . 14 Critical Kills . | . . . Critical Parts Destroyed . | . . . Critical Strikes . | . . . Melee Attacks . | . . . Impact . | . . . Slashing . | . . . Piercing . | . . . Sneak Attacks . | . . . Combat Hostiles . | . . . Follow-up Attacks . | . . . Damage Inflicted 315 | 48 . 267 Guns 315 | 48 . 267 Cannons . | . . . Explosions . | . . . Melee . | . . . Ramming . | . . . Kinetic 260 | 15 . 245 Thermal 55 | 33 . 22 Explosive . | . . . Electromagnetic . | . . . Impact . | . . . Slashing . | . . . Piercing . | . . . Highest Corruption . | . . . Average Corruption . | . . . Corruption Purged . | . . . Corruption Blocked . | . . . Overload Shots . | . . . Overflow Damage . | . . . Projectiles . | . . . Explosions . | . . . Melee . | . . . Knockbacks . | . . . Impact . | . . . Kinetic . | . . . Secondary . | . . . Self-Inflicted Damage . | . . . Shots . | . . . Rammed . | . . . Targets Rammed . | . . . Kicked . | . . . Crushed . | . . . Highest Temperature 20 | 20 . 7 Average Temperature 13 | 15 . 7 Received Heat Transfer 522 | . . 522 Siege Activations . | . . . Martial Activations . | . . . Shielding Activations . | . . . Robots Disrupted . | . . . Combat Hostiles . | . . . Robots Corrupted . | . . . Combat Hostiles . | . . . Parts Fried . | . . . Impact Corruptions . | . . . Robots Melted . | . . . Combat Hostiles . | . . . Parts Melted . | . . . Heat Transferred 125 | 75 . 50 Parts Sabotaged . | . . . Parts Stolen . | . . . Parts Stripped . | . . . Power Chain Reactions . | . . . Alert | -11 -10 -10 ------- Run | Yrd Mat Sub Maximum Alert Level . | . . . Low Security (%) 100 | 100 100 . Level 1 . | . . . Level 2 . | . . . Level 3 . | . . . Level 4 . | . . . Level 5 . | . . . High Security . | . . . Max Security . | . . . Peak Influence 5 | 5 . . Initial . | . . . Average . | 1 . . Influence Increases 240 | 10 . 230 Destroy 0b10 Robot/C 180 | . . 180 Destroy 0b10 Robot/NC 10 | 10 . . Destroy Leader 20 | . . 20 Lose Combat Pursuer 30 | . . 30 Influence Decreases 190 | 10 . 180 Time Decay 120 | 10 . 110 Lost Part 70 | . . 70 Squads Dispatched . | . . . Investigation . | . . . Extermination . | . . . Reinforcement . | . . . Assault . | . . . Garrison . | . . . Intercept . | . . . Searches Triggered . | . . . Construction Impeded . | . . . Haulers Reinforced . | . . . Active Scanning Responses . | . . . Cargo Convoy Interrupts . | . . . Stealth | -11 -10 -10 --------- Run | Yrd Mat Sub Distress Signals . | . . . Communications Jammed . | . . . Distress Signals . | . . . Times Spotted 13 | . . 13 Peak Tracking Total 6 | . . 6 Tactical Retreats 1 | . . 1 Traps | -11 -10 -10 ------- Run | Yrd Mat Sub Traps Triggered . | . . . Indirectly . | . . . Trap Hack Attempts . | . . . Triggered . | . . . Disarmed . | . . . Reprogrammed . | . . . Reused . | . . . Traps Extracted . | . . . Installed . | . . . Triggered . | . . . Machines | -11 -10 -10 ---------- Run | Yrd Mat Sub Machines Disabled . | . . . Max in Single Turn . | . . . Machines Repaired . | . . . Machines Dismantled . | . . . Machines Sabotaged . | . . . Overloaded Fab Kills . | . . . Hacking | -11 -10 -10 --------- Run | Yrd Mat Sub Machines Accessed . | . . . Terminals . | . . . Fabricators . | . . . Repair Stations . | . . . Recycling Units . | . . . Scanalyzers . | . . . Garrison Access . | . . . Total Hacks . | . . . Successful . | . . . Failed . | . . . Catastrophic . | . . . Database Lockouts . | . . . Manual . | . . . Terminals . | . . . Fabricators . | . . . Repair Stations . | . . . Recycling Units . | . . . Scanalyzers . | . . . Garrison Access . | . . . Terminal Hacks . | . . . Fabricator Hacks . | . . . Repair Station Hacks . | . . . Recycling Unit Hacks . | . . . Scanalyzer . | . . . Garrison Access Hacks . | . . . Unauthorized Hacks . | . . . Terminals . | . . . Fabricators . | . . . Repair Stations . | . . . Recycling Units . | . . . Scanalyzers . | . . . Garrison Access . | . . . Data Cores Recovered . | . . . Used . | . . . Hacking Detections . | . . . Full Trace Events . | . . . Feedback Events . | . . . Feedback Blocked . | . . . Robot Schematics Acquired . | . . . Robots Built . | . . . Authchips . | . . . Time . | . . . Total Robot Build Rating . | . . . Part Schematics Acquired . | . . . Parts Built . | . . . Authchips . | . . . Time . | . . . Total Part Build Rating . | . . . Part Studies Acquired . | . . . Parts Repaired . | . . . Time . | . . . Parts Recycled . | . . . Recycled Matter . | . . . Retrieved Matter . | . . . Retrieved Components . | . . . Parts Scanalyzed . | . . . Part Schematics Acquired . | . . . Parts Damaged . | . . . Bothacking | -11 -10 -10 ------------ Run | Yrd Mat Sub Used RIF Installer . | . . . Robots Hacked . | . . . Non-combat . | . . . Combat . | . . . Robot Hacks Applied . | . . . Relay Couplers Released . | . . . Fabnet Peak Effective % . | . . . Robots Rewired . | . . . Allies Hacked . | . . . Hacks Repelled . | . . . Allies | -11 -10 -10 -------- Run | Yrd Mat Sub Total Allies . | . . . Largest Group . | . . . Highest-Rated Group . | . . . Highest-Rated Ally . | . . . Total Orders . | . . . Ally Attacks . | . . . Total Damage . | . . . Kills . | . . . Allies Corrupted . | . . . Allies Melted . | . . . Intel | -11 -10 -10 ------- Run | Yrd Mat Sub Active Infowar (turns) 702 | 40 291 371 Terrain 78 | . . 78 Seismic 624 | 40 291 293 Robot Analysis Total . | . . . Derelict Logs Recovered 1 | . . 1 Drone Launches . | . . . Drone Recoveries . | . . . Exploration | -11 -10 -10 ------------- Run | Yrd Mat Sub Turns Passed 767 | 95 291 381 Spaces Moved 275 | 49 41 185 Core 20 | 9 . 11 Treads 255 | 40 41 174 Legs . | . . . Wheels . | . . . Hover . | . . . Flight . | . . . Fastest Speed 50 | 50 160 100 Average Speed 156 | 139 160 159 Slowest Speed 250 | 160 160 250 Overloaded Moves . | . . . Propulsion Burnouts . | . . . Robots Hopped . | . . . Potential Cave-ins . | . . . Cave-ins Triggered . | . . . Exploration Rate (%) 8 | 4 8 14 Regions Visited 2 Branch Regions 1 Pre-discovered Areas . | . . . Known Exits Taken . | . . . Unknown Exits Taken 2 | 1 1 . Scrap Searched . | . . . Spaces Dug . | . . . Terrain Destroyed . | . . . Melee . | . . . Projectile . | . . . AOE . | . . . Terrain Rammed . | . . . Walls Destroyed . | . . . Machines Disabled . | . . . Actions | -11 -10 -10 --------- Run | Yrd Mat Sub Total 561 | 70 267 224 Wait 231 | . 227 4 Move 273 | 48 40 185 Hop . | . . . Pick Up 13 | 12 . 1 Fast Attach . | . . . Attach 9 | 7 . 2 Detach . | . . . Swap 1 | . . 1 Drop . | . . . Fire 34 | 3 . 31 Melee . | . . . Ram . | . . . Kick . | . . . Crush . | . . . Escape Stasis . | . . . Rewire . | . . . Trap . | . . . Miscellaneous . | . . . Route ------- -11/Scrapyard -10/Materials -10/Subcaves (discovered 1 exit: [*Rec]) History --------- Turn | Location | Event 7 | -11/Scrapyard | Discovered new exit (range 16) 96 | -11/Scrapyard | Entered Materials 306 | -10/Materials | Build established: Mutant 357 | -10/Materials | Discovered new exit (range 10) 387 | -10/Materials | Entered Subcaves 388 | -10/Subcaves | Approached by a straggling Scientist 403 | -10/Subcaves | Shifting Twisted Machinery released Enh. Flamer 439 | -10/Subcaves | Learned Materials garrison access intel 514 | -10/Subcaves | A swath of the cavern ceiling suddenly collapsed 695 | -10/Subcaves | Core integrity fell below 50% 723 | -10/Subcaves | Lost 4 parts (1p1n1u1w) 749 | -10/Subcaves | Discovered new exit (range 16) 761 | -10/Subcaves | Core integrity fell below 20% 768 | -10/Subcaves | Destroyed by Autobeam Turret with Autobeam Last Messages --------------- 00648_ Aluminum Leg fries itself beyond repair. 00654_ Ion Engine fries itself beyond repair. 00670_ Ion Engine destroyed. 00676_ S-10 Pest destroyed. 00680_ Seismic Detector destroyed. 00681_ S-10 Pest destroyed. 00682_ Lgt. Treads destroyed. 00684_ S-10 Pest destroyed. 00692_ Lgt. Assault Rifle fries itself beyond repair. 00692_ Lgt. Assault Rifle destroyed. 00693_ Lgt. Assault Rifle fries itself beyond repair. 00695_ Lgt. Ion Engine fries itself beyond repair. 00695_ Flight Unit fries itself beyond repair. 00699_ Lgt. Ion Engine fries itself beyond repair. 00699_ S-10 Pest destroyed. 00744_ Acquired 23 matter. 00746_ Lgt. Assault Rifle destroyed. 00749_ EXIT=FOUND 00756_ Lgt. Treads destroyed. 00764_ Lgt. Ion Engine destroyed. Map ----- +----------------------------------------------------+ | ?????????????????????????????????????????????????? | | ?????????????????????????????????????????????????? | | ?????????????????????????????????????????????????? | | ?????????????????????????????????????????????????? | | ?????????????????????????????????????????????????? | | ?????????????????????????????????????????????????? | | ?????????????????????????????????????????????????? | | ?????????????????????????????????????????????????? | | ?????????????????????????????????????????????????? | | ?????????????????????????????????????????????????? | | ?????????????????????????????????????????????????? | | ?????????????????????????????????????????????????? | | ?????????????????????????#???????????????????????? | | ????????????????????#????????????????????????????? | | ?????????????????????????????????????????????????? | | ??????????????????#??????????????????????????????? | | ?????????????????????????????????????????????????? | | ????? ???????????????????????????????????????????? | | ?????????????????????????????????????????????????? | | ?????????????????????????????????????????????????? | | ????????????????????########?????????????????????? | | ####??????#?????????#" """#?????????????????????? | | ####?###?????????# "#?????????????????????? | | #### ########### "#?????????????????????? | | ## t""##????????????????????? | | ## # @ <#????????????????????? | | # # % t""##????????????????????? | | %%########### "#?????????????????????? | | #???#?????# "#?????????????????????? | | #### #???#?????#" """#?????????????????????? | | ?#?# #?????????########?????????????????????? | | ???# #?????????##???????????????????????????? | | ???## # #??????????????????????????????????????? | | ????##### #??????????????????????????????????????? | | ??###### #???????????#??????????????????????????? | | ??# ##????????#????????????????????????????? | | ??### # #??????????#??????????????????????????? | | ???## # ##????????????#???????????????????????? | | ???# #????????????????????????????????????? | | ???# # ##???????????????????????????????????? | | #? # ##????????????????????????????????????? | | ?## ## #?????????????????????????????????????? | | ??### ##?????#???????????????????????????????? | | ????# ###??????????????????????????????????????? | | ????# ##??#?????????????????????????????????????? | | ????####?????????????????????????????????????????? | | ?#???????#???????????????????????????????????????? | | ?????????????????????????????????????????????????? | | ?????????????????????????????????????????????????? | | ???#?????????????????????????????????????????????? | +----------------------------------------------------+ Best States ------------- Heat Dissipation 25 Energy Generation 10 Energy Capacity 250 Matter Stores 300 Matter Capacity 300 Sight Range 16 Terrain Scan Range 16 Terrain Scan Density 10 Evasion (%) 50 Recoil Reduction 2 Item Schematics ----------------- None Robot Schematics ------------------ None Fabricated ------------ Nothing Repaired ---------- Nothing Studied --------- None Alien Tech Used ----------------- None Achievements -------------- None Challenges ------------ None Game ------ Seed AssembledProjectionScythe Manual? 0 Play Time 00:05:45 Cumulative 38.8 hours Start 2026.03.14 @ 22:08:54 End 2026.03.14 @ 22:13:10 Sessions 1 Manual Loads 0 Difficulty Rogue Special Mode None Game No. 163 Rogue 163 Adventurer 0 Explorer 0 Win Type - Total 0 Types 0/0/0/0/0/0/0/0/0/0 Lore% 30 Gallery% 27 Achievement% 19 Wizard Run 0 Options --------- Layout 0 ASCII 0 Keyboard 0 Movement Mouse Keybinds 0 Fullscreen 1 Font 18/SmallcapsGlow Map View 38x25 Zoom Use 96% Tactical HUD 1 Map Filters NONE Filters NONE Steam 1 RUN: 88d4c321-a4f5-41ac-bfc2-1163ab90dc2e